Cogmind - Beta 13 @@@ ROGUE MODE // 2024.04.02 @ 20:16:46 Player: SonVince Result: Destroyed by BB-P24(R) with Subdweller Laser Performance ------------- Evolutions (0) 0 Regions Visited (3) 600 Robots Destroyed (16) 80 Value Destroyed (329) 329 Prototype IDs (0) 0 Alien Tech Used (0) 0 Bonus (0) 0 TOTAL SCORE: 1009 Bonus ------- None Cogmind --------- Core Integrity 0/250 Matter 290/300 Energy 240/250 System Corruption 0% Temperature Cool (6) Movement Treading (160) Location -10/Subcaves Parts ------- > --- POWER (1) -------- Ion Engine > --- PROPULSION (2) --- Light Treads Light Treads > --- UTILITY (2) ------ Large Storage Unit Signal Interpreter > --- WEAPON (2) ------- Subdweller Beam Cannon Ripper > --- INVENTORY (15) --- Ion Engine Ion Engine Aluminum Leg Aluminum Leg Improved Heat Sink Structural Scanner Tractor Beam Particle Gun Beam Cannon Beam Cannon Beam Cannon Subdweller Machine Gun Rocket Launcher Datajack Peak State ------------ > --- POWER ------------ Ion Engine > --- PROPULSION ------- Light Treads Light Treads > --- UTILITY ---------- Large Storage Unit Signal Interpreter > --- WEAPON ----------- Subdweller Beam Cannon Ripper > --- INVENTORY -------- Ion Engine Ion Engine Aluminum Leg Aluminum Leg Improved Heat Sink Structural Scanner Terrain Scanner Tractor Beam EM Pulse Gun Particle Gun Beam Cannon Beam Cannon Beam Cannon Rocket Launcher Datajack [Rating: 12] Favorites ----------- Power Ion Engine Engine Ion Engine Propulsion Light Treads Treads Light Treads Utility Signal Interpreter Storage Large Storage Unit Processor Signal Interpreter Weapon Beam Cannon Energy Gun Small Laser Energy Cannon Beam Cannon Slashing Weapon Ripper Build | -11 -10 -10 -10 ------- Run | Yrd Mat Min Sub Slots Evolved . | . . . . Power . | . . . . Propulsion . | . . . . Utility . | . . . . Weapon . | . . . . Parts Attached 13 | 5 6 . 2 Power 1 | . 1 . . Engine 1 | . 1 . . Core . | . . . . Reactor . | . . . . Propulsion 2 | 2 . . . Treads 2 | 2 . . . Leg . | . . . . Wheel . | . . . . Hover . | . . . . Flight . | . . . . Utility 4 | 1 3 . . Device . | . . . . Storage 3 | 1 2 . . Processor 1 | . 1 . . Hackware . | . . . . Protection . | . . . . Artifact . | . . . . Weapon 6 | 2 2 . 2 Energy Gun 2 | 2 . . . Energy Cannon 3 | . 2 . 1 Ballistic Gun . | . . . . Ballistic Cannon . | . . . . Launcher . | . . . . Special Weapon . | . . . . Impact Weapon . | . . . . Slashing Weapon 1 | . . . 1 Piercing Weapon . | . . . . Special Melee Weapon . | . . . . Unidentified Prototypes . | . . . . Parts Lost . | . . . . Power . | . . . . Propulsion . | . . . . Utility . | . . . . Weapon . | . . . . Highest Loss Streak . | . . . . To Critical Strikes . | . . . . Average Slot Usage (%) 97 | . 92 100 100 Engine 12 | . 9 14 14 Treads 28 | . 28 28 28 Storage 14 | . 14 14 14 Processor 12 | . 11 14 14 Energy Gun 4 | . 12 . . Energy Cannon 20 | . 15 28 14 Slashing Weapon 2 | . . . 13 Naked Turns . | . . . . Heaviest Build 36 | 7 31 31 36 Greatest Support 40 | 40 40 40 40 Greatest Overweight (x) . | . . . . Average Overweight (x) . | . . . . Largest Inventory Capacity 15 | 8 15 15 15 Average Capacity 13 | 7 12 15 15 Most Carried 15 | 5 14 15 15 Average Carried 12 | 3 9 14 14 Final Capacity 15 | 8 15 15 15 Final Carried 15 | 5 14 15 14 Class Distribution -------------------- 100% | Mutant Dominant Class ---------------- Mutant | -10/Materials Mutant | -10/Mines Mutant | -10/Subcaves Resources | -11 -10 -10 -10 ----------- Run | Yrd Mat Min Sub Matter Collected 320 | 170 140 . 10 Remotely . | . . . . Salvage Created 532 | . 393 . 139 Parts 38 | . 30 . 8 Haulers Intercepted 2 | . 2 . . Recyclers Shooed . | . . . . Parts Field Recycled . | . . . . Retrieved Matter . | . . . . Parts Self-Destructed 2 | . . . 2 Prevented . | . . . . Kills | -11 -10 -10 -10 ------- Run | Yrd Mat Min Sub Combat Hostiles Destroyed 9 | . 6 . 3 Guns 1 | . 1 . . Cannons 8 | . 5 . 3 Classes Destroyed 8 | . 6 . 2 Worker 1 | . 1 . . Hauler 2 | . 2 . . Recycler 1 | . 1 . . Watcher 3 | . 3 . . Swarmer 3 | . 3 . . Grunt 3 | . 3 . . Sentry 1 | . . . 1 Subdweller 2 | . . . 2 Best Kill Streak 4 | . 4 . 2 Combat Bots Only 3 | . 3 . 2 Max Kills in Single Turn 1 | . 1 . 1 Gunslinging . | . . . . Exploded . | . . . . Melee . | . . . . Uniques/NPCs Destroyed . | . . . . Combat | -11 -10 -10 -10 -------- Run | Yrd Mat Min Sub Hostile Shots Fired 60 | . 33 . 27 Missed 13 | . 6 . 7 Damage Taken 620 | . 252 . 368 Core 250 | . 90 . 160 Absorbed by Shields . | . . . . Core Remaining (%) 100 | 100 . . . Volleys Fired 39 | . 26 . 13 Largest 2 | . 2 . 2 Hottest 120 | . 120 . 120 Shots Fired 67 | . 51 . 16 Gun 24 | . 24 . . Cannon 43 | . 27 . 16 Launcher . | . . . . Special . | . . . . Kinetic . | . . . . Thermal 67 | . 51 . 16 Explosive . | . . . . Electromagnetic . | . . . . Robot Hit Streak 12 | . 8 . 12 Robot Miss Streak 4 | . 4 . 1 Penetration Max . | . . . . Secondary Targets . | . . . . Shots Hit Robots 46 | . 32 . 14 Core Hits 21 | . 16 . 5 Critical Kills . | . . . . Critical Parts Destroyed . | . . . . Critical Strikes . | . . . . Melee Attacks 1 | . . . 1 Impact . | . . . . Slashing 1 | . . . 1 Piercing . | . . . . Sneak Attacks . | . . . . Combat Hostiles . | . . . . Follow-up Attacks . | . . . . Damage Inflicted 728 | . 466 3 259 Guns 167 | . 167 . . Cannons 556 | . 297 . 259 Explosions . | . . . . Melee . | . . . . Ramming 5 | . 2 3 . Kinetic . | . . . . Thermal 723 | . 464 . 259 Explosive . | . . . . Electromagnetic . | . . . . Impact . | . . . . Slashing . | . . . . Piercing . | . . . . Highest Corruption . | . . . . Average Corruption . | . . . . Corruption Purged . | . . . . Corruption Blocked . | . . . . Overload Shots . | . . . . Overflow Damage 23 | . 23 . . Projectiles 23 | . 23 . . Explosions . | . . . . Melee . | . . . . Knockbacks . | . . . . Impact . | . . . . Kinetic . | . . . . Secondary . | . . . . Self-Inflicted Damage . | . . . . Shots . | . . . . Rammed 1 | . . 1 . Targets Rammed 2 | . 1 1 . Kicked . | . . . . Crushed 1 | . 1 . . Highest Temperature 312 | . 312 . . Average Temperature 88 | . 88 . . Received Heat Transfer 135 | . 54 . 81 Effects 1 | . 1 . . Energy Bleed 1 | . 1 . . Siege Activations . | . . . . Robots Corrupted . | . . . . Combat Hostiles . | . . . . Parts Fried . | . . . . Impact Corruptions . | . . . . Robots Melted . | . . . . Combat Hostiles . | . . . . Parts Melted 3 | . 2 . 1 Heat Transferred 1522 | . 1004 . 518 Parts Sabotaged . | . . . . Parts Stolen . | . . . . Parts Stripped . | . . . . Power Chain Reactions . | . . . . Alert | -11 -10 -10 -10 ------- Run | Yrd Mat Min Sub Peak Influence 111 | . 111 43 . Initial 43 | . . 43 . Average 31 | . 57 13 . Maximum Alert Level . | . . . . Low Security (%) 100 | 100 100 100 . Level 1 . | . . . . Level 2 . | . . . . Level 3 . | . . . . Level 4 . | . . . . Level 5 . | . . . . High Security . | . . . . Max Security . | . . . . Squads Dispatched 3 | . 3 . . Investigation 1 | . 1 . . Extermination . | . . . . Reinforcement 2 | . 2 . . Assault . | . . . . Garrison . | . . . . Intercept . | . . . . Searches Triggered . | . . . . Construction Impeded . | . . . . Haulers Reinforced . | . . . . Active Scanning Responses . | . . . . Cargo Convoy Interrupts . | . . . . Stealth | -11 -10 -10 -10 --------- Run | Yrd Mat Min Sub Distress Signals . | . . . . Communications Jammed . | . . . . Distress Signals . | . . . . Times Spotted 19 | . 15 . 4 Peak Tracking Total 3 | . 3 . 2 Tactical Retreats 3 | . 3 . . Traps | -11 -10 -10 -10 ------- Run | Yrd Mat Min Sub Traps Triggered 1 | . 1 . . Indirectly . | . . . . Trap Hack Attempts . | . . . . Triggered . | . . . . Disarmed . | . . . . Reprogrammed . | . . . . Reused . | . . . . Traps Extracted . | . . . . Installed . | . . . . Triggered . | . . . . Machines | -11 -10 -10 -10 ---------- Run | Yrd Mat Min Sub Machines Disabled . | . . . . Max in Single Turn . | . . . . Machines Repaired . | . . . . Machines Dismantled . | . . . . Machines Sabotaged . | . . . . Overloaded Fab Kills . | . . . . Hacking | -11 -10 -10 -10 --------- Run | Yrd Mat Min Sub Machines Accessed 3 | . 2 . 1 Terminals 1 | . 1 . . Fabricators . | . . . . Repair Stations . | . . . . Recycling Units 1 | . 1 . . Scanalyzers . | . . . . Garrison Access . | . . . . Total Hacks 5 | . 4 . 1 Successful 2 | . 1 . 1 Failed 3 | . 3 . . Catastrophic . | . . . . Database Lockouts . | . . . . Manual . | . . . . Terminals 3 | . 3 . . Fabricators . | . . . . Repair Stations . | . . . . Recycling Units 1 | . 1 . . Scanalyzers . | . . . . Garrison Access . | . . . . Terminal Hacks 1 | . . . 1 Record 1 | . . . 1 Fabricator Hacks . | . . . . Repair Station Hacks . | . . . . Recycling Unit Hacks 1 | . 1 . . Report Inventory 1 | . 1 . . Scanalyzer . | . . . . Garrison Access Hacks . | . . . . Unauthorized Hacks . | . . . . Terminals . | . . . . Fabricators . | . . . . Repair Stations . | . . . . Recycling Units . | . . . . Scanalyzers . | . . . . Garrison Access . | . . . . Data Cores Recovered . | . . . . Used . | . . . . Hacking Detections 1 | . 1 . . Full Trace Events 1 | . 1 . . Feedback Events . | . . . . Feedback Blocked . | . . . . Robot Schematics Acquired . | . . . . Robots Built . | . . . . Authchips . | . . . . Time . | . . . . Total Robot Build Rating . | . . . . Part Schematics Acquired . | . . . . Parts Built . | . . . . Authchips . | . . . . Time . | . . . . Total Part Build Rating . | . . . . Parts Repaired . | . . . . Time . | . . . . Parts Recycled . | . . . . Recycled Matter . | . . . . Retrieved Matter . | . . . . Retrieved Components . | . . . . Parts Scanalyzed . | . . . . Part Schematics Acquired . | . . . . Parts Damaged . | . . . . Bothacking | -11 -10 -10 -10 ------------ Run | Yrd Mat Min Sub Used RIF Installer . | . . . . Robots Hacked . | . . . . Non-combat . | . . . . Combat . | . . . . Robot Hacks Applied . | . . . . Relay Couplers Released . | . . . . Fabnet Peak Effective % . | . . . . Robots Rewired . | . . . . Allies Hacked . | . . . . Hacks Repelled . | . . . . Allies | -11 -10 -10 -10 -------- Run | Yrd Mat Min Sub Total Allies . | . . . . Largest Group . | . . . . Highest-Rated Group . | . . . . Highest-Rated Ally . | . . . . Total Orders . | . . . . Ally Attacks . | . . . . Total Damage . | . . . . Kills . | . . . . Allies Corrupted . | . . . . Allies Melted . | . . . . Intel | -11 -10 -10 -10 ------- Run | Yrd Mat Min Sub Robot Analysis Total . | . . . . Derelict Logs Recovered 2 | . . 2 . Drone Launches . | . . . . Drone Recoveries . | . . . . Exploration | -11 -10 -10 -10 ------------- Run | Yrd Mat Min Sub Turns Passed 2989 | 69 1040 1319 561 Spaces Moved 1443 | 46 416 665 316 Core 16 | 16 . . . Treads 1427 | 30 416 665 316 Legs . | . . . . Wheels . | . . . . Hover . | . . . . Flight . | . . . . Fastest Speed 50 | 50 160 160 160 Average Speed 158 | 121 160 160 160 Slowest Speed 160 | 160 160 160 160 Overloaded Moves . | . . . . Propulsion Burnouts . | . . . . Robots Hopped . | . . . . Cave-ins Triggered . | . . . . Exploration Rate (%) 45 | 4 63 99 15 Regions Visited 3 Branch Regions 2 Pre-discovered Areas 1 | . . 1 . Known Exits Taken 2 | . 1 1 . Unknown Exits Taken 1 | 1 . . . Scrap Searched 2 | . . 2 . Spaces Dug . | . . . . Terrain Destroyed . | . . . . Melee . | . . . . Projectile . | . . . . AOE . | . . . . Terrain Rammed . | . . . . Walls Destroyed . | . . . . Machines Disabled . | . . . . Actions | -11 -10 -10 -10 --------- Run | Yrd Mat Min Sub Total 2075 | 58 740 921 356 Wait 544 | . 275 251 18 Move 1440 | 45 415 664 316 Hop . | . . . . Pick Up 26 | 8 13 3 2 Fast Attach 2 | 2 . . . Attach 5 | 3 2 . . Detach . | . . . . Swap 6 | . 4 . 2 Drop 10 | . 4 2 4 Fire 39 | . 26 . 13 Melee 1 | . . . 1 Ram . | . . . . Kick . | . . . . Crush 2 | . 1 1 . Escape Stasis . | . . . . Rewire . | . . . . Trap . | . . . . Miscellaneous . | . . . . Route ------- -11/Scrapyard -10/Materials (discovered 2 exits: *Mat / *Min) -10/Mines (discovered 3 exits: *Mat x2 / *Sub) -10/Subcaves History --------- Turn | Location | Event 7 | -11/Scrapyard | Discovered new exit (range 15) 70 | -11/Scrapyard | Entered Materials 265 | -10/Materials | Discovered new exit (range 11) 292 | -10/Materials | Identified exit to Materials 312 | -10/Materials | Build established: Mutant 696 | -10/Materials | Discovered new exit (range 13) 1076 | -10/Materials | Identified exit to Mines 1110 | -10/Materials | Entered Mines 1233 | -10/Mines | Learned location of Storage (-9) 1235 | -10/Mines | Discovered exit to Materials (range 4) 1468 | -10/Mines | Learned 2 Materials zone layouts 1507 | -10/Mines | Received a Rocket Launcher from a helpful Derelict 1534 | -10/Mines | Learned Materials terminal intel 1608 | -10/Mines | A weapon hastily lodged in a ceiling crevice suddenly fell to the ground 1635 | -10/Mines | Discovered exit to Materials (range 7) 2418 | -10/Mines | Discovered new exit (range 6) 2428 | -10/Mines | Identified exit to Subcaves 2429 | -10/Mines | Entered Subcaves 2431 | -10/Subcaves | Shifting Twisted Machinery released Sub. Machine Gun 2431 | -10/Subcaves | Ambushed by Subdwellers from Twisted Machinery 2450 | -10/Subcaves | Core integrity fell below 50% 2501 | -10/Subcaves | Core integrity fell below 20% 2571 | -10/Subcaves | Visited Clippyterm 2873 | -10/Subcaves | Shifting Twisted Machinery released Sub. Beam Cannon 2990 | -10/Subcaves | Destroyed by BB-P24(R) with Subdweller Laser Last Messages --------------- 3Y-4EG(u) builds Twisted Machinery. The door opens automatically. Connecting with Clippyterm... >>Record! "Clippyterm" Welcome to Clippyterm v0.53, my misguided attempt to resurrect an ancient AI. I give up. There must be something fundamentally wrong with the algorithm, because no matter how much data I collect to feed it, half the time it still manages to suggest unhelpful sample queries and responses. --DD-NU8 Subatomizers dissect the Disposable Heat Sink. 3Y-4EG(u) builds Twisted Machinery. 0J-AXH(u) tweaks Twisted Machinery. 3Y-4EG(u) builds Twisted Machinery. Subatomizers dissect the Sub. Optics. Sub. Beam Cannon falls loose from the Twisted Machinery. Dropped Beam Cannon. Dropped EM Pulse Gun. Dropped Particle Gun. Acquired Particle Gun. Dropped Terrain Scanner. Acquired Sub. Machine Gun. Subatomizers dissect the Beam Cannon. Map ----- +----------------------------------------------------+ | ?????????????????????????????????????????????????? | | ?????????????????????????????????????????????????? | | ?????????????????????????????????????????????????? | | ?????????????????????????????????????????????????? | | ?????????????????????????????????????????????????? | | ?????????????????????????????????????????????????? | | ?????????????????????????????????????????????????? | | ?????????????????????????????????????????????????? | | ?????????????????????????????????????????????????? | | ?????????????????????????????????????????????????? | | ??????????????????????? ??#?????????????????????? | | ??????????????????????? ## ????????????????????? | | ?????????????????????? ????????????????????? | | ?????????????????????? ????????????????????? | | ?????????????????????? ????????????????????? | | ??????????????????????# #????????????????????? | | ??????????????????????# #????????????????????? | | ???????????????????#??? #????????????????????? | | ??????????????????## ?? #????????????????????? | | ??????????????????# ? ????????????????????? | | ?????????????????## ?? ?????????????????????? | | ????????????????## ? ?????????????????????? | | ??????????? ## ## ??????????????????????? | | ??????????" # ??????????????????????? | | ?????????? ##?????????????????????? | | ?????????????"" R @ ###??######???????????? | | ????????????" " ####### #?## #???????????? | | ????????????????????????## #?# #???????????? | | ????????????????????????# ### #???????????? | | ???????????????????###### ## #????????????? | | ???????????????### # ### ##????????????? | | ???????????? ### ##?????????????? | | ???????????? #??????????????# | | ???????????? # #### #######???????## | | ????????????????????## ## #??????## | | ?????????????????????# ##????## | | ?????????????????????# ##??## "" | | ?????????????????????# #### " | | ??????????????????? ## ### [ ## | | ????????????????? ####### ## ! ## | | ????????????????? ##???## "] "" | | ???????????????? #????# "" "" | | ?????????????????## ????## """" | | ??????????????????# ?????##"" """ | | ??????????????????#### ??????##" """"# | | ?????????????????????## ## ###???????########### | | ??????????????????????####?##????????????????????? | | ?????????????????????????????????????????????????? | | ?????????????????????????????????????????????????? | | ?????????????????????????????????????????????????? | +----------------------------------------------------+ Best States ------------- Heat Dissipation 25 Energy Generation 10 Energy Capacity 250 Matter Stores 300 Matter Capacity 300 Sight Range 16 Terrain Scan Density 10 Evasion (%) 50 Recoil Reduction 2 Item Schematics ----------------- None Robot Schematics ------------------ None Fabricated ------------ Nothing Alien Tech Used ----------------- None Achievements -------------- None Challenges ------------ None Game ------ Seed AluminumBottomlessDoomcannon Manual? 0 Play Time 00:17:34 Cumulative 6.1 hours Start 2024.04.02 @ 20:00:04 End 2024.04.02 @ 20:16:46 Sessions 1 Manual Loads 0 Difficulty Rogue Special Mode None Game No. 15 Rogue 15 Adventurer 0 Explorer 0 Win Type - Total 0 Types 0/0/0/0/0/0/0/0/0 Lore% 6 Gallery% 10 Achievement% 12 Wizard Run 0 Options --------- Layout 0 ASCII 0 Keyboard 0 Movement Mouse Keybinds 0 Fullscreen 1 Font 24/Smallcaps Map View 56x25 Zoom Use 98% Tactical HUD 0 Map Filters NONE Filters NONE Steam 1 RUN: 853761cb-7546-4aab-aa54-a13231d21cef